bitfinex/quotes_BTCUSD_20251217
["timestamp","ask_amount","ask_price","bid_price","bid_amount"]
[1765970918212,0.0107845,86964.0,86963.0,0.00025255]
[1765970918432,0.29827472,86964.0,86963.0,0.00025255]
[1765970918649,2.53146472,86964.0,86963.0,0.00025255]
[1765970918864,2.33606733,86964.0,86963.0,0.00025255]
[1765970919064,2.39357733,86964.0,86963.0,0.00025255]
[1765970919510,2.3014845,86964.0,86963.0,0.00025255]
[1765970920344,2.3024845,86964.0,86963.0,0.00025255]
[1765970921005,2.3599945,86964.0,86963.0,0.00025255]
[1765970921215,2.41794528,86964.0,86963.0,0.00025255]
[1765970922346,2.47545528,86964.0,86963.0,0.00025255]
[1765970922551,2.41794528,86964.0,86963.0,0.00025255]
[1765970923577,2.6479255,86964.0,86963.0,0.00025255]
[1765970924015,2.41794528,86964.0,86963.0,0.00025255]
[1765970924628,2.3024845,86964.0,86963.0,0.00025255]
[1765970929635,2.3599945,86964.0,86963.0,0.00025255]
[1765970929876,2.3024845,86964.0,86963.0,0.00025255]
[1765970931231,2.3599945,86964.0,86963.0,0.00025255]
[1765970931670,2.3024845,86964.0,86963.0,0.00025255]
[1765970931869,2.41794528,86964.0,86963.0,0.00025255]
[1765970933249,2.3024845,86964.0,86963.0,0.00025255]
[1765970937071,2.3024845,86964.0,86963.0,0.00010344]
[1765970938261,2.2917,86964.0,86963.0,0.09160344]
[1765970939052,2.0,86964.0,86963.0,0.09160344]
[1765970939256,2.0,86969.0,86963.0,0.00010344]
[1765970939458,2.001,86964.0,86963.0,0.00110344]
[1765970940528,2.0,86964.0,86963.0,0.00110344]
[1765970940729,2.0,86968.0,86963.0,0.00110344]
[1765970940932,0.12622239,86967.0,86963.0,0.00210344]
[1765970941137,2.0,86965.0,86963.0,0.00210344]
[1765970941290,2.0,86966.0,86963.0,0.00210344]
[1765970941492,2.0,86964.0,86963.0,0.00110344]
[1765970941715,0.11546078,86967.0,86963.0,0.00010344]
[1765970941716,2.0,86966.0,86963.0,0.00010344]
[1765970941955,2.0,86964.0,86963.0,0.00010344]
[1765970942170,2.01076475,86964.0,86963.0,0.00010344]
[1765970942786,2.01076475,86964.0,86963.0,0.00110344]
[1765970943085,2.01076475,86964.0,86963.0,0.00010344]
[1765970943914,2.01076475,86964.0,86963.0,0.00110344]
[1765970944049,2.08627544,86964.0,86963.0,0.00110344]
[1765970944233,2.08627544,86964.0,86963.0,0.00010344]
[1765970945618,2.01076475,86964.0,86963.0,0.00010344]
[1765970950954,2.01076475,86964.0,86963.0,0.09099631]
[1765970952122,2.01076475,86964.0,86963.0,0.03908631]
[1765970952564,2.01076475,86964.0,86963.0,0.04008631]
[1765970952798,2.01076475,86964.0,86963.0,0.00371631]
[1765970954249,2.12622553,86964.0,86963.0,0.00371631]
[1765970954804,2.12622553,86964.0,86963.0,0.05662631]
[1765970955428,2.12622553,86964.0,86963.0,0.00371631]
[1765970959706,0.12622553,86964.0,86963.0,0.00371631]
[1765970959909,0.01076475,86964.0,86963.0,0.00371631]
[1765970960499,0.2907,86969.0,86963.0,0.00371631]
[1765970960686,2.0,86967.0,86963.0,0.00371631]
[1765970960887,0.01076475,86966.0,86963.0,0.00371631]
[1765970961097,0.01076475,86965.0,86963.0,0.00371631]
[1765970961301,0.01076475,86964.0,86963.0,0.00371631]
[1765970961444,0.01076475,86964.0,86963.0,0.00271631]
[1765970961681,0.01076475,86977.0,86963.0,0.00171631]
[1765970961844,2.0,86974.0,86963.0,0.00171631]
[1765970962053,0.2907,86971.0,86963.0,0.00171631]
[1765970962284,2.0,86968.0,86963.0,0.00171631]
[1765970962458,2.0,86966.0,86963.0,0.00171631]
[1765970962789,0.01076475,86965.0,86963.0,0.00271631]
[1765970963009,0.01076475,86964.0,86963.0,0.00171631]
[1765970963350,0.01076475,86974.0,86963.0,0.00171631]
[1765970963553,0.2907,86970.0,86963.0,0.00271631]
[1765970963757,2.0,86968.0,86963.0,0.00271631]
[1765970963956,2.0,86966.0,86963.0,0.00171631]
[1765970964160,0.01076475,86965.0,86963.0,0.00171631]
[1765970964475,0.01076475,86964.0,86963.0,0.00271631]
[1765970965035,0.01076475,86964.0,86963.0,0.00371631]
[1765970965247,0.01076475,86964.0,86963.0,0.00271631]
[1765970965674,0.01076475,86964.0,86963.0,0.00371631]
[1765970965878,0.01076475,86964.0,86963.0,0.00271631]
[1765970966080,0.2907,86972.0,86963.0,0.00271631]
[1765970966310,0.01076475,86971.0,86963.0,0.00371631]
[1765970966510,0.01076475,86970.0,86963.0,0.00371631]
[1765970966703,0.01076475,86969.0,86963.0,0.00271631]
[1765970966888,0.01076475,86968.0,86963.0,0.00271631]
[1765970967097,0.01076475,86967.0,86963.0,0.00271631]
[1765970967304,0.01076475,86966.0,86963.0,0.00271631]
[1765970967615,0.01076475,86965.0,86963.0,0.00171631]
[1765970967812,0.01076475,86964.0,86963.0,0.00171631]
[1765970968703,0.2907,86975.0,86963.0,0.00171631]
[1765970968908,0.2907,86972.0,86963.0,0.00171631]
[1765970969106,0.2907,86970.0,86963.0,0.00171631]
[1765970969330,0.01076475,86969.0,86963.0,0.00371631]
[1765970969552,0.01076475,86968.0,86963.0,0.00271631]
[1765970969762,0.01076475,86967.0,86963.0,0.00171631]
[1765970969945,0.01076475,86966.0,86963.0,0.00171631]
[1765970970122,0.33587064,86973.0,86963.0,0.00171631]
[1765970970123,0.01076475,86965.0,86963.0,0.00171631]
[1765970970327,0.01076475,86964.0,86963.0,0.00171631]
[1765970970523,0.01076475,86971.0,86963.0,0.00171631]
[1765970970725,0.01076475,86970.0,86963.0,0.00171631]
[1765970970928,0.01076475,86969.0,86963.0,0.00271631]
[1765970971131,0.01076475,86968.0,86963.0,0.00271631]
[1765970971351,0.01076475,86967.0,86963.0,0.00271631]
[1765970971556,0.01076475,86966.0,86963.0,0.00271631]
[1765970971755,0.01076475,86965.0,86963.0,0.00271631]
[1765970971954,0.01076475,86964.0,86963.0,0.00271631]
[1765970972154,0.01076475,86964.0,86963.0,0.00171631]
[1765970972421,0.01076475,86971.0,86963.0,0.00171631]
[1765970972592,0.01076475,86970.0,86963.0,0.00271631]
[1765970972836,0.01076475,86969.0,86963.0,0.00171631]
[1765970973000,0.01076475,86968.0,86963.0,0.00171631]
[1765970973151,0.01076475,86967.0,86963.0,0.00371631]
[1765970973352,0.01076475,86966.0,86963.0,0.00271631]
[1765970973608,0.01076475,86965.0,86963.0,0.00271631]
[1765970973815,0.01076475,86964.0,86963.0,0.00171631]
[1765970974169,0.01076475,86971.0,86963.0,0.00171631]
[1765970974373,0.01076475,86970.0,86963.0,0.00171631]
[1765970974576,0.01076475,86969.0,86963.0,0.00171631]
[1765970974797,0.01076475,86968.0,86963.0,0.00171631]
[1765970974973,0.01076475,86967.0,86963.0,0.00171631]
[1765970975180,0.01076475,86966.0,86963.0,0.00171631]
[1765970975439,0.01076475,86965.0,86963.0,0.00171631]
[1765970975598,0.05741015,86978.0,86963.0,0.00171631]
[1765970975599,0.2907,86977.0,86966.0,0.16596573]
[1765970975778,2.0,86974.0,86966.0,0.16596573]
[1765970975962,0.2907,86971.0,86965.0,0.0275]
[1765970976167,0.01079873,86970.0,86965.0,0.0275]
[1765970976363,0.01079873,86969.0,86963.0,0.01987631]
[1765970976574,0.01079873,86968.0,86963.0,0.02087631]
[1765970976790,0.01079873,86967.0,86963.0,0.01987631]
[1765970976991,0.01079873,86966.0,86963.0,0.01987631]
[1765970977190,0.01079873,86965.0,86963.0,0.01987631]
[1765970977439,0.01079873,86964.0,86963.0,0.01987631]
[1765970977956,0.01079873,86970.0,86963.0,0.01987631]
[1765970978163,0.01079873,86969.0,86963.0,0.01987631]
[1765970978366,0.01079873,86968.0,86963.0,0.01987631]
[1765970978558,0.01079873,86967.0,86963.0,0.01987631]
[1765970978878,0.01079873,86966.0,86963.0,0.01987631]
[1765970979065,0.01079873,86965.0,86963.0,0.01987631]
[1765970979375,0.01079873,86964.0,86963.0,0.01987631]
[1765970979572,0.01079873,86972.0,86963.0,0.01987631]
[1765970979902,0.2907,86970.0,86963.0,0.01987631]
[1765970980078,0.01079873,86969.0,86963.0,0.01987631]
[1765970980282,0.01079873,86968.0,86963.0,0.02087631]
[1765970980617,0.01079873,86967.0,86963.0,0.02087631]
[1765970980791,0.01079873,86966.0,86963.0,0.02087631]
[1765970980974,0.01079873,86965.0,86963.0,0.02087631]
[1765970981174,0.01079873,86964.0,86963.0,0.02087631]
[1765970981523,0.01079873,86971.0,86963.0,0.02087631]
[1765970981639,0.01079873,86970.0,86963.0,0.02087631]
[1765970981844,0.01079873,86969.0,86963.0,0.02087631]
[1765970982058,0.01079873,86968.0,86963.0,0.02087631]
[1765970982259,0.01079873,86967.0,86963.0,0.02087631]
[1765970982468,0.01079873,86966.0,86963.0,0.01987631]
[1765970982683,0.01079873,86965.0,86963.0,0.01987631]
[1765970982892,0.01079873,86964.0,86963.0,0.01987631]
[1765970983741,0.01079873,86971.0,86963.0,0.01987631]
[1765970983967,0.01079873,86970.0,86963.0,0.02187631]
[1765970984174,0.01079873,86969.0,86963.0,0.02187631]
[1765970984376,0.01079873,86968.0,86963.0,0.02187631]
[1765970984613,0.01079873,86967.0,86963.0,0.02187631]
[1765970984810,0.01079873,86966.0,86963.0,0.02187631]
[1765970985035,0.01079873,86965.0,86963.0,0.02087631]
[1765970985237,0.01079873,86964.0,86963.0,0.01987631]
[1765970985460,0.01079873,86964.0,86963.0,0.02187631]
[1765970985820,0.01079873,86971.0,86963.0,0.01987631]
[1765970986063,0.01079873,86970.0,86963.0,0.01987631]
[1765970986265,0.01079873,86969.0,86963.0,0.02087631]
[1765970986438,0.01079873,86968.0,86963.0,0.02087631]
[1765970986745,0.01079873,86967.0,86963.0,0.02087631]
[1765970986953,0.01079873,86966.0,86963.0,0.01987631]
[1765970987146,0.01079873,86965.0,86963.0,0.01987631]
[1765970987346,0.01079873,86964.0,86963.0,0.01987631]
[1765970987565,0.2907,86972.0,86963.0,0.01987631]
[1765970987720,0.01079873,86971.0,86963.0,0.01987631]
[1765970987921,0.2907,86972.0,86963.0,0.01987631]
[1765970987922,0.01079873,86970.0,86963.0,0.01987631]
[1765970988222,0.2907,86972.0,86963.0,0.01987631]
[1765970988223,0.01079873,86969.0,86963.0,0.01987631]
[1765970988409,0.01079873,86968.0,86963.0,0.01987631]
[1765970988586,0.01079873,86967.0,86963.0,0.01987631]
[1765970988790,0.01079873,86966.0,86963.0,0.01987631]
[1765970988971,0.01079873,86965.0,86963.0,0.01987631]
[1765970989167,0.01079873,86964.0,86963.0,0.01987631]
[1765970989811,0.01079873,86971.0,86963.0,0.01987631]
[1765970989997,0.01079873,86970.0,86963.0,0.01987631]
[1765970990196,0.01079873,86969.0,86963.0,0.02187631]
[1765970990429,0.01079873,86968.0,86963.0,0.02187631]
[1765970990623,0.01079873,86967.0,86963.0,0.02187631]
[1765970990777,0.01079873,86966.0,86963.0,0.02187631]
[1765970990977,0.01079873,86965.0,86963.0,0.02187631]
[1765970991306,0.01079873,86964.0,86963.0,0.02187631]
[1765970991504,0.01079873,86964.0,86963.0,0.02087631]
[1765970991684,0.01079873,86964.0,86963.0,0.02187631]
[1765970991890,0.01079873,86964.0,86963.0,0.01987631]
[1765970992324,0.01079873,86964.0,86963.0,0.02087631]
[1765970992932,0.01079873,86964.0,86963.0,0.01987631]
[1765970993129,0.01079873,86964.0,86963.0,0.02087631]
[1765970993879,0.01079873,86964.0,86963.0,0.02187631]
[1765970997169,0.01080276,86964.0,86963.0,0.02187631]
[1765971002091,0.12572292,86964.0,86963.0,0.00210344]
[1765971002295,2.16329521,86964.0,86963.0,3.44e-06]
[1765971002932,2.12572292,86964.0,86953.0,0.01816]
[1765971003158,2.0,86962.0,86953.0,0.01816]
[1765971003383,2.0,86960.0,86953.0,0.01816]
[1765971003745,2.0,86958.0,86948.0,0.03099117]
[1765971003946,2.0,86956.0,86948.0,0.03099117]
[1765971004151,0.01080276,86955.0,86948.0,0.03099117]
[1765971004380,0.01080276,86954.0,86948.0,0.00037637]
[1765971004633,0.01080276,86953.0,86948.0,0.00037637]
[1765971004830,0.01079702,86952.0,86948.0,0.00037637]
[1765971005067,2.0,86957.0,86948.0,0.00198924]
[1765971005453,2.0,86959.0,86948.0,0.00198924]
[1765971007833,0.11546078,86958.0,86948.0,0.00198924]
[1765971008039,2.0,86957.0,86948.0,0.00198924]
[1765971008838,2.0,86957.0,86955.0,0.0002526]
[1765971011616,2.0,86957.0,86955.0,2.6e-06]
[1765971011816,2.01816,86957.0,86955.0,2.6e-06]
[1765971012017,2.0,86956.0,86955.0,2.6e-06]
[1765971014455,2.11546078,86956.0,86955.0,2.6e-06]
[1765971016823,2.1262471,86956.0,86955.0,2.6e-06]
[1765971017350,2.01078632,86956.0,86955.0,2.6e-06]
[1765971018523,2.12570648,86956.0,86955.0,2.6e-06]
[1765971019045,2.01078632,86956.0,86955.0,2.6e-06]
[1765971019468,2.12570648,86956.0,86955.0,2.6e-06]
[1765971021135,2.12570648,86956.0,86949.0,0.0634326]
[1765971021136,0.01078632,86956.0,86949.0,0.0634326]
[1765971021340,0.02589,86962.0,86951.0,0.05254]
[1765971021545,0.02589,86962.0,86961.0,0.08821]
[1765971021764,2.0,86979.0,86967.0,0.05254]
[1765971021976,2.0,86977.0,86967.0,0.05254]
[1765971022191,0.01078532,86976.0,86966.0,0.02589]
[1765971022397,0.01078532,86975.0,86966.0,0.02589]
[1765971022613,0.01078532,86974.0,86966.0,0.02589]
[1765971022781,0.01078532,86973.0,86966.0,0.02589]
[1765971022998,0.01078532,86972.0,86966.0,0.02589]
[1765971023202,0.01078532,86971.0,86966.0,0.02589]
[1765971023379,0.01078532,86970.0,86966.0,0.02589]
[1765971023578,0.01078208,86969.0,86966.0,0.02589]
[1765971023784,2.0,86978.0,86966.0,0.02489]
[1765971024007,2.0,86976.0,86966.0,0.02489]
[1765971024250,0.2907,86979.0,86966.0,0.02489]
[1765971024251,0.01078196,86975.0,86966.0,0.02489]
[1765971024409,0.01078196,86974.0,86966.0,0.02489]
[1765971024608,0.2907,86979.0,86972.0,0.03567]
[1765971024609,0.01078196,86973.0,86972.0,0.03567]
[1765971024984,0.01078196,86976.0,86967.0,0.07553722]
[1765971025184,0.2907,86981.0,86967.0,0.07715009]
[1765971025185,0.01078196,86975.0,86967.0,0.07715009]
[1765971025398,0.01078196,86974.0,86967.0,0.07715009]
[1765971025613,0.01078196,86973.0,86967.0,0.07715009]
[1765971025860,0.01078196,86972.0,86968.0,0.01816]
[1765971026016,0.2907,86979.0,86968.0,0.01816]
[1765971026218,2.0,86977.0,86968.0,0.01816]
[1765971026412,0.0107781,86976.0,86968.0,0.01816]
[1765971026614,0.0107781,86975.0,86968.0,0.01816]
[1765971026820,0.0107781,86974.0,86968.0,0.01816]
[1765971027185,0.0107781,86973.0,86968.0,0.0707]
[1765971027386,0.2907,86981.0,86968.0,0.01816]
[1765971027657,0.03457545,86983.0,86968.0,0.01816]
[1765971027658,2.0,86978.0,86968.0,0.01816]
[1765971027882,2.0,86976.0,86968.0,0.01816]
[1765971028019,0.0107748,86975.0,86968.0,0.01816]
[1765971028224,0.0107748,86974.0,86969.0,0.05254]
[1765971028430,0.2907,86989.0,86974.0,0.05254]
[1765971028690,0.2907,86984.0,86974.0,0.05254]
[1765971028822,0.2907,86982.0,86974.0,0.05254]
[1765971029025,0.0107732,86981.0,86974.0,0.05254]
[1765971029232,0.0107732,86981.0,86974.0,0.05415287]
[1765971029435,0.0107732,86980.0,86979.0,0.08821]
[1765971029662,2.002,86989.0,86978.0,0.02589]
[1765971029864,0.001,86982.0,86975.0,0.05254]
[1765971030382,0.001,86981.0,86975.0,0.05254]
[1765971030585,0.001,86981.0,86975.0,0.0526091]
[1765971031625,0.0107709,86988.0,86975.0,0.0526091]
[1765971031779,2.0,86987.0,86975.0,0.0536091]
[1765971031976,2.0,86987.0,86975.0,0.0010691]
[1765971031977,0.01149676,86981.0,86975.0,0.0010691]
[1765971032195,2.0,86979.0,86975.0,6.91e-05]
[1765971032399,2.0,86977.0,86975.0,0.0010691]
[1765971032597,0.11492016,86982.0,86975.0,0.0010691]
[1765971032598,2.0107709,86976.0,86975.0,0.0010691]
[1765971032803,2.0107709,86976.0,86975.0,6.91e-05]
[1765971033017,2.12623168,86976.0,86975.0,6.91e-05]
[1765971033867,2.0107709,86976.0,86975.0,6.91e-05]
[1765971045049,2.01077298,86976.0,86975.0,6.91e-05]
[1765971055374,0.01077298,86976.0,86975.0,6.91e-05]
[1765971055607,0.2907,86982.0,86975.0,6.91e-05]
[1765971055807,0.2907,86980.0,86975.0,6.91e-05]
[1765971055964,0.01077298,86979.0,86975.0,6.91e-05]
[1765971056167,0.01077298,86978.0,86975.0,6.91e-05]
[1765971056363,0.01077298,86977.0,86975.0,6.91e-05]
[1765971056568,0.01077298,86976.0,86975.0,6.91e-05]
[1765971057088,0.01077298,86979.0,86975.0,6.91e-05]
[1765971057246,0.01077298,86978.0,86975.0,6.91e-05]
[1765971059771,0.01077298,86977.0,86975.0,6.91e-05]
[1765971060008,0.01077298,86976.0,86975.0,6.91e-05]
[1765971060453,0.01077298,86979.0,86975.0,6.91e-05]
[1765971060610,0.01077298,86978.0,86975.0,6.91e-05]
[1765971060812,0.01077298,86977.0,86975.0,6.91e-05]
[1765971061145,0.01077298,86976.0,86975.0,6.91e-05]
[1765971061329,0.01077298,86981.0,86975.0,6.91e-05]
[1765971061534,0.01077298,86980.0,86975.0,6.91e-05]
[1765971061754,0.01079646,86979.0,86975.0,6.91e-05]
[1765971061961,0.01079646,86978.0,86975.0,6.91e-05]
[1765971062161,0.01079646,86977.0,86975.0,6.91e-05]
[1765971062474,0.01079646,86976.0,86975.0,6.91e-05]
[1765971062823,0.01079646,86981.0,86975.0,6.91e-05]
[1765971063049,0.05243812,86980.0,86975.0,6.91e-05]
[1765971063261,0.01079646,86979.0,86975.0,6.91e-05]
[1765971063470,0.01079646,86978.0,86975.0,6.91e-05]
[1765971063689,0.04164166,86980.0,86975.0,6.91e-05]
[1765971063690,0.01079646,86977.0,86975.0,6.91e-05]
[1765971063896,0.01079646,86976.0,86975.0,6.91e-05]
[1765971064534,0.01079646,86979.0,86975.0,6.91e-05]
[1765971064742,0.01079646,86978.0,86975.0,6.91e-05]
[1765971064943,0.01079646,86977.0,86975.0,6.91e-05]
[1765971065140,0.01079646,86976.0,86975.0,6.91e-05]
[1765971065555,0.01079646,86979.0,86975.0,6.91e-05]
[1765971065763,0.01079646,86978.0,86975.0,6.91e-05]
[1765971065968,0.01079646,86977.0,86975.0,6.91e-05]
[1765971066280,0.01079646,86976.0,86975.0,6.91e-05]
[1765971066778,0.01079646,86979.0,86975.0,6.91e-05]
[1765971066980,0.04870382,86978.0,86975.0,6.91e-05]
[1765971067197,0.01079646,86977.0,86975.0,6.91e-05]
[1765971067393,0.01079646,86976.0,86975.0,6.91e-05]
[1765971067569,0.01079646,86977.0,86975.0,6.91e-05]
[1765971067900,0.01079646,86976.0,86975.0,6.91e-05]
[1765971068072,0.01079646,86977.0,86975.0,6.91e-05]
[1765971068277,0.01079646,86976.0,86975.0,6.91e-05]
[1765971068479,0.01079646,86977.0,86975.0,6.91e-05]
[1765971068682,0.01079646,86976.0,86975.0,6.91e-05]
[1765971069132,0.03790736,86978.0,86975.0,6.91e-05]
[1765971069133,0.01079646,86977.0,86975.0,6.91e-05]
[1765971069310,0.01079646,86976.0,86975.0,6.91e-05]
[1765971069487,0.01079646,86977.0,86975.0,6.91e-05]
[1765971069694,0.01079646,86976.0,86975.0,6.91e-05]
[1765971071763,0.01079646,86978.0,86975.0,6.91e-05]
[1765971071969,0.01079646,86977.0,86975.0,6.91e-05]
[1765971072129,0.01079646,86976.0,86975.0,6.91e-05]
[1765971072328,0.01079646,86978.0,86975.0,6.91e-05]
[1765971072533,0.05660229,86977.0,86975.0,6.91e-05]
[1765971072851,0.01079646,86976.0,86975.0,6.91e-05]
[1765971075336,0.01079646,86979.0,86975.0,6.91e-05]
[1765971075543,0.01079646,86978.0,86975.0,6.91e-05]
[1765971075740,0.01079646,86977.0,86975.0,6.91e-05]
[1765971075971,0.01079646,86976.0,86975.0,6.91e-05]
[1765971084920,0.01079646,86976.0,86975.0,0.0789391]
[1765971085843,2.0,86983.0,86975.0,0.0789391]
[1765971086066,0.01079646,86982.0,86975.0,0.0789391]
[1765971086267,0.01079646,86981.0,86975.0,0.0789391]
[1765971086441,0.01079646,86980.0,86976.0,0.04776]
[1765971086669,0.01079646,86979.0,86976.0,0.04776]
[1765971086829,0.01079646,86978.0,86977.0,0.1026]
[1765971087241,2.0,86985.0,86977.0,0.1026]
[1765971087434,0.2907,86987.0,86977.0,0.1026]
[1765971087435,2.0,86983.0,86977.0,0.1026]
[1765971087639,0.2907,86987.0,86977.0,0.1026]
[1765971087640,0.01079646,86982.0,86978.0,0.04776]
[1765971087839,0.01079646,86981.0,86978.0,0.04776]
[1765971088040,0.01079646,86980.0,86978.0,0.04776]
[1765971088236,0.01079646,86979.0,86978.0,0.07887]
[1765971088644,2.0,86985.0,86978.0,0.07887]
[1765971089020,2.0,86983.0,86978.0,0.07887]
[1765971089218,0.01079646,86982.0,86979.0,0.04776]
[1765971089423,0.01079646,86981.0,86979.0,0.04776]
[1765971089618,0.01079646,86980.0,86979.0,0.04776]
[1765971089853,0.01079646,86980.0,86979.0,0.07887]
[1765971090026,0.01079646,86984.0,86979.0,0.07887]
[1765971090264,2.0,86982.0,86979.0,0.07887]
[1765971090421,0.01079646,86981.0,86979.0,0.07887]
[1765971090627,0.01079646,86980.0,86979.0,0.07887]
[1765971091325,2.0,86983.0,86979.0,0.07887]
[1765971091326,0.01079646,86982.0,86979.0,0.07887]
[1765971091514,0.01079646,86981.0,86979.0,0.07887]
[1765971091711,0.01079646,86980.0,86979.0,0.07887]
[1765971092042,0.01079646,86980.0,86979.0,0.06587]
[1765971092250,2.0,86985.0,86979.0,0.06587]
[1765971092492,2.0,86983.0,86979.0,0.06587]
[1765971092626,0.01079646,86982.0,86979.0,0.06587]
[1765971092831,0.01079646,86981.0,86979.0,0.06587]
[1765971093187,0.01079646,86980.0,86979.0,0.06587]
[1765971093406,0.33579017,87000.0,86987.0,0.07887]
[1765971093407,0.11492016,86995.0,86987.0,0.07887]
[1765971093704,0.33579017,87010.0,86990.0,0.04776]
[1765971093911,0.01079075,87004.0,86993.0,0.02373]
[1765971094098,0.01079075,87003.0,86994.0,0.04776]
[1765971094297,0.2907,87009.0,86994.0,0.04776]
[1765971094298,0.01079075,87002.0,86994.0,0.04937287]
[1765971094472,0.2907,87009.0,86994.0,0.04937287]
[1765971094473,0.01079075,87001.0,86994.0,0.04937287]
[1765971094678,0.01079075,87000.0,86994.0,0.04937287]
[1765971094877,0.01079075,86999.0,86994.0,0.04937287]
[1765971095202,0.00180892,87005.0,86997.0,0.07771]
[1765971095427,0.06282991,87004.0,86998.0,0.01816]
[1765971095561,0.001,87001.0,86998.0,0.01816]
[1765971096305,0.001,87001.0,86994.0,0.00161287]
[1765971096515,0.001,87001.0,86999.0,0.01816]
[1765971096718,0.001,87001.0,86994.0,0.04773287]
[1765971096945,0.01077523,87003.0,86996.0,0.04612]
[1765971097062,0.001,87001.0,86996.0,0.04612]
[1765971097264,0.01177523,87001.0,86996.0,0.04612]
[1765971097485,0.00280892,87005.0,86996.0,0.04612]
[1765971097743,0.001,87001.0,86996.0,0.04612]
[1765971097960,0.001,87003.0,86996.0,0.04612]
[1765971098448,0.001,87001.0,86996.0,0.04612]
[1765971098885,0.002,87001.0,86996.0,0.04612]
[1765971099626,0.001,87001.0,86996.0,0.04612]
[1765971100038,0.001,87003.0,87002.0,0.1009]
[1765971100292,2.0,87009.0,87002.0,0.1009]
[1765971100742,2.0,87009.0,86997.0,0.04612]
[1765971100983,2.06671602,87009.0,86996.0,0.00161287]
[1765971101198,2.06671602,87009.0,86987.0,0.2072336]
[1765971101199,0.25,87000.0,86989.0,0.01816]
[1765971101415,0.11492016,86994.0,86989.0,0.01816]
[1765971101672,2.0,86989.0,86971.0,0.04612]
[1765971101883,0.33579017,86981.0,86977.0,0.01816]
[1765971102086,0.11492016,86984.0,86977.0,0.01816]
[1765971102498,0.11492016,86984.0,86971.0,0.02319]
[1765971102499,2.0,86983.0,86973.0,0.01816]
[1765971102701,2.33579017,86983.0,86973.0,0.01816]
[1765971102831,2.0,86982.0,86973.0,0.01816]
[1765971103039,0.05395665,86981.0,86973.0,0.0182291]
[1765971103241,2.0,86982.0,86973.0,0.0182291]
[1765971103442,2.0,86982.0,86973.0,6.91e-05]
[1765971103642,0.33579017,86983.0,86973.0,6.91e-05]
[1765971103643,0.11492016,86975.0,86973.0,6.91e-05]
[1765971105165,0.11492016,86975.0,86973.0,0.0010691]
[1765971106123,0.11492016,86975.0,86973.0,0.0020691]
[1765971108463,0.25,86980.0,86973.0,0.0020691]
[1765971108464,0.2907,86976.0,86973.0,0.0020691]
[1765971109434,0.11492016,86979.0,86973.0,0.0020691]
[1765971109435,0.40562016,86979.0,86973.0,0.0010691]
[1765971109673,0.2907,86976.0,86973.0,6.91e-05]
[1765971109912,0.2907,86976.0,86973.0,0.0020691]
[1765971110827,0.2907,86975.0,86973.0,0.0010691]
[1765971111446,0.2907,86975.0,86973.0,0.00268197]
[1765971111873,0.2907,86979.0,86973.0,0.00268197]
[1765971112049,0.2907,86977.0,86973.0,0.00268197]
[1765971112265,0.2907,86975.0,86973.0,0.04880197]
[1765971112676,0.2907,86975.0,86973.0,0.04780197]
[1765971112924,0.2907,86975.0,86974.0,0.00120944]
[1765971113244,0.2907,86982.0,86974.0,0.00120944]
[1765971113518,0.2907,86976.0,86973.0,0.04780197]
[1765971115211,0.2907,86981.0,86973.0,0.04780197]
[1765971115412,0.2907,86978.0,86973.0,0.04780197]
[1765971115635,0.2907,86976.0,86975.0,0.07771]
[1765971116024,0.2907,86976.0,86975.0,0.03159]
[1765971116402,0.2907,86976.0,86975.0,0.07771]
[1765971116617,0.2907,86976.0,86975.0,0.07932287]
[1765971118735,0.2907,86976.0,86975.0,0.00161287]
[1765971119164,0.2907,86989.0,86975.0,0.00279074]
[1765971119357,0.33579017,86985.0,86975.0,0.00261287]
[1765971119557,0.2907,86981.0,86975.0,0.00261287]
[1765971119773,0.01075726,86980.0,86975.0,0.00361287]
[1765971119972,0.01075726,86979.0,86975.0,0.00261287]
[1765971120178,0.2907,86980.0,86975.0,0.00161287]
[1765971120401,0.2907,86978.0,86975.0,0.00161287]
[1765971122494,0.2907,86979.0,86975.0,0.00161287]
[1765971122702,0.2907,86979.0,86975.0,0.00261287]
[1765971123304,0.2907,86979.0,86975.0,0.00161287]
[1765971124491,0.11492016,86981.0,86975.0,0.00161287]
[1765971124492,0.01076115,86978.0,86975.0,0.00161287]
[1765971124662,0.2907,86978.0,86975.0,0.00161287]
[1765971125683,0.2907,86978.0,86975.0,0.00261287]
[1765971125852,0.2907,86979.0,86975.0,0.00261287]
[1765971126055,0.01076341,86978.0,86975.0,0.00261287]
[1765971126294,0.01076555,86977.0,86975.0,0.00261287]
[1765971126631,0.2907,86979.0,86975.0,0.00161287]
[1765971126837,0.0107661,86978.0,86975.0,0.00161287]
[1765971127047,0.0107661,86977.0,86975.0,0.00161287]
[1765971127247,0.0107661,86976.0,86975.0,0.00161287]
[1765971127423,0.0107661,86979.0,86975.0,0.00161287]
[1765971127630,0.0107661,86978.0,86975.0,0.00161287]
[1765971127831,0.0107661,86977.0,86975.0,0.00161287]
[1765971128060,0.0107661,86976.0,86975.0,0.00161287]
[1765971128464,0.2907,86980.0,86975.0,0.00161287]
[1765971128645,0.0107661,86979.0,86975.0,0.00161287]
[1765971129043,0.0107661,86979.0,86975.0,0.00361287]
[1765971129247,0.0107661,86979.0,86975.0,0.00261287]
[1765971129471,0.0107661,86979.0,86975.0,0.00161287]
[1765971129785,0.0107661,86978.0,86975.0,0.00161287]
[1765971129930,0.0107661,86977.0,86975.0,0.00161287]
[1765971130134,0.0107661,86976.0,86975.0,0.00161287]
[1765971130385,0.0107661,86979.0,86975.0,0.00161287]
[1765971130556,0.0107661,86979.0,86975.0,0.00279074]
[1765971130760,0.0107661,86979.0,86975.0,0.00161287]
[1765971131161,0.0107661,86978.0,86975.0,0.00161287]
[1765971131412,0.0107661,86977.0,86975.0,0.00261287]
[1765971131597,0.0107661,86976.0,86975.0,0.00261287]
[1765971131844,0.2907,86980.0,86975.0,0.00261287]
[1765971132002,0.40562016,86976.0,86975.0,0.00261287]
[1765971132313,0.3014661,86976.0,86975.0,0.00161287]
[1765971132742,0.3014661,86976.0,86975.0,0.00361287]
[1765971132964,0.3014661,86976.0,86975.0,0.00261287]
[1765971133739,0.3014661,86976.0,86975.0,0.00361287]
[1765971140691,0.3014661,86976.0,86975.0,0.002]
[1765971140899,0.34987572,86976.0,86975.0,0.002]
[1765971141093,0.46479588,86976.0,86975.0,0.00317787]
[1765971141702,0.46479588,86976.0,86975.0,0.00217787]
[1765971142249,0.46479588,86976.0,86975.0,0.00117787]
[1765971144016,0.41638626,86976.0,86975.0,0.00117787]
[1765971144330,0.12568626,86976.0,86975.0,0.00117787]
[1765971145301,0.12220626,86976.0,86975.0,0.00117787]
[1765971147171,0.0072861,86976.0,86975.0,0.00117787]
[1765971147571,0.2907,86982.0,86975.0,0.00117787]